fUST/lending_fUST_20250623
["ID","MTS","AMOUNT","RATE_DAILY","PERIOD"]
[367003439,1750611060018,-587.0,0.00024168,2]
[367003441,1750611060028,-1500.0,0.00024168,2]
[367003443,1750611060037,-344.94862943,0.00024168,2]
[367003445,1750611060049,-1059.17432975,0.00024168,2]
[367003447,1750611060059,-1500.0,0.00024168,2]
[367003449,1750611060069,-1500.0,0.00024168,2]
[367003451,1750611060079,-1500.0,0.00024168,2]
[367003453,1750611060089,-509.50906241,0.00024168,2]
[367003454,1750611060099,-1500.0,0.00024168,2]
[367003457,1750611060109,-1800.0,0.00024168,2]
[367003458,1750611060119,-1500.0,0.00024168,2]
[367003460,1750611060129,-1487.07405773,0.00024168,2]
[367003463,1750611060139,-1500.0,0.00024168,2]
[367003464,1750611060148,-1096.30454229,0.00024168,2]
[367003466,1750611060158,-1565.94837091,0.00024168,2]
[367003468,1750611060168,-1008.31430779,0.00024168,2]
[367003471,1750611060179,-545.28441747,0.00024168,2]
[367003473,1750611060190,-1500.0,0.00024168,2]
[367003475,1750611060200,-1500.0,0.00024168,2]
[367003477,1750611060211,-587.0,0.00024169,2]
[367003479,1750611060222,-2300.0,0.00024176,2]
[367003481,1750611060232,-190.0,0.00024181,2]
[367003482,1750611060242,-700.0,0.00024183,2]
[367003485,1750611060253,-600.0,0.00024193,2]
[367003487,1750611060263,-12500.0,0.00024208,3]
[367003488,1750611060274,-1813.92265862,0.0002421,10]
[367003491,1750611060284,-2500.0,0.00024215,2]
[367003493,1750611060294,-2500.0,0.00024215,2]
[367003494,1750611060303,-12500.0,0.00024217,3]
[367003496,1750611060313,-12500.0,0.00024225,3]
[367003499,1750611060324,-12500.0,0.00024226,3]
[367003501,1750611060333,-2300.0,0.0002423,2]
[367003502,1750611060344,-12500.0,0.00024234,3]
[367003504,1750611060354,-613.6773564,0.0002424,2]
[367003506,1750611060364,-5888.0,0.00024241,2]
[367003507,1750611060373,-4794.84481225,0.00024243,3]
[367003508,1750611060383,-12500.0,0.00024243,3]
[367003509,1750611060392,-161.752838,0.00024243,7]
[367003510,1750611060402,-161.752838,0.00024243,7]
[367003511,1750611060411,-813.370501,0.00024243,7]
[367003512,1750611060427,-813.370501,0.00024243,7]
[367003513,1750611060437,-600.0,0.00024243,2]
[367003514,1750611060447,-2300.0,0.00024249,2]
[367003515,1750611060457,-176.448579,0.0002425,4]
[367003516,1750611060468,-158.698644,0.0002425,4]
[367003517,1750611060478,-500.0,0.00024264,13]
[367003518,1750611060488,-700.0,0.00024266,2]
[367003519,1750611060503,-700.0,0.00024271,2]
[367003520,1750611060513,-1479.26591566,0.00024275,2]
[367003521,1750611060523,-3478.98232357,0.00024275,2]
[367003522,1750611060532,-447.99053911,0.00024278,4]
[367003523,1750611060542,-604.14492161,0.00024278,4]
[367003524,1750611060552,-671.29429204,0.00024278,4]
[367003525,1750611060562,-700.0,0.00024284,2]
[367003526,1750611060572,-267.85,0.000243,14]
[367003527,1750611060582,-1500.0,0.00024307,2]
[367003528,1750611060592,-500.0,0.00024307,2]
[367003529,1750611060602,-200.0,0.0002432,10]
[367003530,1750611060611,-800.0,0.00024327,2]
[367003531,1750611060621,-700.0,0.00024335,2]
[367003532,1750611060630,-21270.10380943,0.00024358,2]
[367003533,1750611060640,-38031.48501579,0.00024358,2]
[367003534,1750611060649,-5623.92654726,0.00024358,2]
[367003535,1750611060659,-166.025028,0.00024364,7]
[367003536,1750611060669,-478.52766168,0.00024368,2]
[367003537,1750611060679,-1500.0,0.00024368,2]
[367003538,1750611060688,-1500.0,0.00024368,2]
[367003539,1750611060698,-1498.0,0.00024372,2]
[367003540,1750611060707,-151.0,0.00024373,7]
[367003541,1750611060717,-151.0,0.00024373,7]
[367003542,1750611060726,-473.082773,0.00024373,7]
[367003543,1750611060736,-473.082773,0.00024373,7]
[367003544,1750611060747,-200.589809,0.00024373,7]
[367003545,1750611060762,-200.589809,0.00024373,7]
[367003546,1750611060772,-1407.52,0.00024383,3]
[367003547,1750611060782,-151.0,0.00024383,7]
[367003548,1750611060792,-151.0,0.00024383,7]
[367003549,1750611060801,-151.0,0.00024383,7]
[367003550,1750611060811,-460.0,0.00024383,3]
[367003551,1750611060821,-460.0,0.00024383,3]
[367003552,1750611060831,-460.0,0.00024383,3]
[367003553,1750611060841,-460.0,0.00024383,3]
[367003554,1750611060851,-460.0,0.00024383,3]
[367003555,1750611060860,-460.0,0.00024383,3]
[367003556,1750611060871,-163.370699,0.00024383,7]
[367003557,1750611060880,-163.370699,0.00024383,7]
[367003558,1750611060890,-2519.340536,0.00024383,7]
[367003559,1750611060899,-2519.340536,0.00024383,7]
[367003560,1750611060909,-460.0,0.00024383,3]
[367003561,1750611060919,-223.975158,0.00024383,7]
[367003562,1750611060928,-223.975158,0.00024383,7]
[367003563,1750611060938,-151.0,0.00024383,7]
[367003564,1750611060947,-522.5,0.00024383,3]
[367003565,1750611060957,-500.73,0.00024383,3]
[367003566,1750611060966,-181.150418,0.00024383,7]
[367003567,1750611060976,-181.150418,0.00024383,7]
[367003568,1750611060985,-460.0,0.00024383,3]
[367003569,1750611060995,-248.49126936,0.00024383,3]
[367003570,1750611061009,-200.0,0.00024383,3]
[367003571,1750611061018,-151.0,0.00024383,7]
[367003572,1750611061029,-209.800505,0.00024383,7]
[367003573,1750611061039,-209.800505,0.00024383,7]
[367003574,1750611061048,-151.0,0.00024383,7]
[367003575,1750611061058,-200.31537,0.00024383,7]
[367003576,1750611061068,-200.31537,0.00024383,7]
[367003577,1750611061077,-194.10112,0.00024383,7]
[367003578,1750611061087,-194.10112,0.00024383,7]
[367003579,1750611061096,-1893.61496,0.00024383,7]
[367003580,1750611061105,-1893.61496,0.00024383,7]
[367003581,1750611061115,-151.0,0.00024383,7]
[367003582,1750611061125,-151.0,0.000244,7]
[367003583,1750611061134,-151.0,0.000244,7]
[367003584,1750611061143,-312.755757,0.000244,7]
[367003585,1750611061154,-312.755757,0.000244,7]
[367003586,1750611061163,-727.797248,0.000244,7]
[367003587,1750611061173,-727.797248,0.000244,7]
[367003588,1750611061183,-8233.65,0.000244,7]
[367003589,1750611061193,-447.99,0.000244,4]
[367003590,1750611061203,-3964.34816427,0.000244,2]
[367003591,1750611061212,-604.14,0.000244,4]
[367003592,1750611061222,-671.29,0.000244,4]
[367003593,1750611061232,-2351.0,0.000244,2]
[367003594,1750611061241,-600.0,0.00024402,2]
[367003595,1750611061254,-2100.65169996,0.00024416,2]
[367003596,1750611061264,-237.348408,0.00024417,7]
[367003597,1750611061273,-151.0,0.00024417,7]
[367003598,1750611061283,-1813.92265862,0.00024417,11]
[367003599,1750611061293,-11230.01326631,0.00024417,12]
[367003600,1750611061303,-700.0,0.00024423,2]
[367003601,1750611061313,-3000.0,0.00024433,2]
[367003602,1750611061322,-600.0,0.00024436,2]
[367003603,1750611061332,-700.0,0.00024436,2]
[367003604,1750611061341,-800.0,0.00024439,2]
[367003605,1750611061351,-800.0,0.00024457,2]
[367003606,1750611061361,-150.0,0.00024473,2]
[367003607,1750611061371,-188.443143,0.00024493,7]
[367003608,1750611061381,-151.0,0.00024493,7]
[367003609,1750611061390,-151.0,0.00024493,7]
[367003610,1750611061400,-231.28369723,0.00024499,2]
[367003611,1750611061410,-500.0,0.000245,2]
[367003612,1750611061421,-1500.0,0.000245,2]
[367003613,1750611061430,-1940151.77802096,0.000245,2]
[367003635,1750611063287,200.0,0.00024931,120]
[367003638,1750611220790,3000.0,0.00024,30]
[367003639,1750611221236,3000.0,0.0002401,30]
[367003640,1750611221701,3000.0,0.0002402,30]
[367003641,1750611222032,3000.0,0.0002403,30]
[367003642,1750611222510,3000.0,0.0002404,30]
[367003643,1750611222945,3000.0,0.0002405,30]
[367003644,1750611223315,3000.0,0.0002406,30]
[367003645,1750611223686,3000.0,0.0002407,30]
[367003646,1750611224104,3000.0,0.0002408,30]
[367003647,1750611224702,3000.0,0.0002409,30]
[367003649,1750611225151,3000.0,0.000241,30]
[367003650,1750611225776,3000.0,0.0002411,30]
[367003651,1750611226149,3000.0,0.0002412,30]
[367003652,1750611226469,3000.0,0.0002413,30]
[367003653,1750611226841,3310.338187,0.0002414,30]
[367003654,1750611354952,200.0,0.00022191,30]
[367003655,1750611355205,200.0,0.00022465,30]
[367003656,1750611355459,200.0,0.00022739,30]
[367003657,1750611355699,231.13699969,0.00023013,30]
[367003659,1750611516005,800.0,0.00019732,2]
[367003661,1750611635602,431.91,0.00025,30]
[367003662,1750611658127,326.164656,0.00013699,2]
[367003667,1750611792995,508.723628,0.00019901,2]
[367003673,1750611946380,-326.164656,0.00020187,2]
[367003674,1750611946402,-300.0,0.00020399,2]
[367003675,1750611946422,-1200.0,0.00020399,2]
[367003676,1750611946443,-741.63852722,0.000204,2]
[367003677,1750611946464,-500.0,0.000204,2]
[367003678,1750611946485,-500.0,0.000204,2]
[367003679,1750611946509,-500.0,0.000204,2]
[367003680,1750611946530,-500.0,0.000204,2]
[367003681,1750611946551,-500.0,0.000204,2]
[367003682,1750611946571,-303.64167035,0.000204,2]
[367003683,1750611946595,-31.24652201,0.00020562,2]
[367003684,1750611981896,200.0,0.00024931,120]
[367003686,1750611996298,500.0,0.00024801,30]
[367003687,1750612025101,-300.0,0.00020562,2]
[367003688,1750612025122,-300.0,0.00020562,2]
[367003689,1750612025145,-468.75347799,0.00020562,2]
[367003690,1750612025168,-192.66216358,0.00020562,2]
[367003691,1750612025189,-163.76894085,0.00020562,2]
[367003692,1750612025214,-321.12707774,0.00020562,2]
[367003693,1750612025236,-384.13326968,0.00020563,2]
[367003694,1750612032094,-6.47011062,0.00020563,2]
[367003695,1750612032115,-431.53618527,0.00020563,2]
[367003696,1750612050133,-468.21461458,0.00020569,2]
[367003697,1750612051875,1000.0,0.00025,30]
[367003698,1750612070480,1000.0,0.00024,30]
[367003709,1750612232343,-331.78538542,0.00020569,2]
[367003712,1750612232354,-433.87800716,0.00020589,2]
[367003714,1750612232364,-272.13660742,0.00021013,2]
[367003716,1750612232376,-9392.30023271,0.00021013,2]
[367003718,1750612232386,-1451.252238,0.00021013,2]
[367003743,1750612238442,-3548.747762,0.00021013,2]
[367003744,1750612238453,-160.0,0.00021137,2]
[367003745,1750612238462,-425.56574812,0.00021137,2]
[367003746,1750612238472,-300.0,0.00021496,2]
[367003747,1750612238481,-1200.0,0.00021496,2]
[367003748,1750612238491,-26583.51024191,0.00021497,2]
[367003749,1750612238504,-260.14,0.0002152,2]
[367003750,1750612238514,-473.195,0.00021526,2]
[367003751,1750612238524,-2161.0,0.0002167,2]
[367003752,1750612238533,-654.0,0.0002167,2]
[367003753,1750612238543,-6202.89960857,0.0002167,2]
[367003754,1750612238553,-160.0,0.00021771,2]
[367003755,1750612238562,-160.0,0.00021771,2]
[367003756,1750612238572,-12551.52821599,0.00021771,2]
[367003757,1750612238582,-160.0,0.00021771,2]
[367003758,1750612238591,-836.56272071,0.00021771,2]
[367003759,1750612238601,-230.14598372,0.00021771,2]
[367003760,1750612238611,-846.39664074,0.00021771,2]
[367003761,1750612238620,-213.59462818,0.00021771,2]
[367003762,1750612238629,-425.01221603,0.00021771,2]
[367003763,1750612238639,-160.0,0.00021771,2]
[367003764,1750612238649,-160.0,0.00021771,2]
[367003765,1750612238659,-160.0,0.00021771,2]
[367003766,1750612238902,-160.0,0.00021776,2]
[367003768,1750612238912,-200.0,0.00021917,2]
[367003770,1750612238922,-168.0,0.00022,2]
[367003772,1750612238932,-314.45826034,0.0002203,2]
[367003773,1750612238941,-154.968929,0.00022107,2]
[367003774,1750612238951,-207.4,0.00022107,2]
[367003775,1750612238960,-5000.0,0.00022107,2]
[367003776,1750612238970,-3680.0,0.00022346,2]
[367003777,1750612238980,-500.0,0.00022364,2]
[367003778,1750612238990,-500.0,0.00022364,2]
[367003779,1750612239004,-500.0,0.00022364,2]
[367003780,1750612239013,-500.0,0.00022364,2]
[367003781,1750612239022,-500.0,0.00022364,2]
[367003782,1750612239032,-500.0,0.00022371,2]
[367003783,1750612239041,-420.0,0.00022377,2]
[367003784,1750612239051,-746.49,0.0002239,10]
[367003785,1750612239060,-622.08,0.0002239,10]
[367003786,1750612239069,-500.0,0.00022399,2]
[367003787,1750612239079,-235.55307457,0.00022399,2]
[367003788,1750612239089,-39542.30575311,0.000224,5]
[367003789,1750612239099,-150.0,0.0002248,2]
[367003790,1750612239109,-965.0,0.0002248,2]
[367003791,1750612239119,-3000.0,0.000225,2]
[367003792,1750612239128,-3680.0,0.00022507,2]
[367003793,1750612239137,-3000.0,0.0002251,2]
[367003794,1750612239147,-3000.0,0.0002252,2]
[367003795,1750612239157,-704.6,0.0002252,5]
[367003796,1750612239167,-3000.0,0.0002253,2]
[367003797,1750612239176,-3000.0,0.0002254,2]
[367003798,1750612239186,-3000.0,0.0002255,2]
[367003799,1750612239196,-3000.0,0.0002256,2]
[367003800,1750612239206,-3000.0,0.0002257,2]
[367003801,1750612239216,-3000.0,0.0002258,2]
[367003802,1750612239227,-3000.0,0.0002259,2]
[367003803,1750612239236,-500.0,0.00022599,7]
[367003804,1750612239246,-3000.0,0.000226,2]
[367003805,1750612239260,-500.0,0.00022609,2]
[367003806,1750612239270,-3000.0,0.0002261,2]
[367003807,1750612239280,-3000.0,0.0002262,2]
[367003808,1750612239290,-3000.0,0.0002263,2]
[367003809,1750612239299,-3000.0,0.0002264,2]
[367003810,1750612239309,-3000.0,0.0002265,2]
[367003811,1750612239318,-5000.0,0.00022655,2]
[367003812,1750612239327,-500.0,0.00022656,2]
[367003813,1750612239338,-3000.0,0.0002266,2]
[367003814,1750612239348,-3000.0,0.0002267,2]
[367003815,1750612239358,-3000.0,0.0002268,2]
[367003816,1750612239367,-3000.0,0.0002269,2]
[367003817,1750612239378,-3000.0,0.000227,2]
[367003818,1750612239388,-3000.0,0.0002271,2]
[367003819,1750612239398,-3000.0,0.0002272,2]
[367003820,1750612239408,-3000.0,0.0002273,2]
[367003821,1750612239418,-3000.0,0.0002274,2]
[367003822,1750612239429,-3000.0,0.0002275,2]
[367003823,1750612239439,-3000.0,0.0002276,2]
[367003824,1750612239450,-3000.0,0.0002277,2]
[367003825,1750612239460,-3000.0,0.0002278,2]
[367003826,1750612239470,-704.6,0.00022787,5]
[367003827,1750612239480,-3000.0,0.0002279,2]
[367003828,1750612239491,-3000.0,0.000228,2]
[367003829,1750612239508,-13907.40045311,0.000228,2]
[367003830,1750612239518,-3000.0,0.0002281,2]
[367003831,1750612239529,-3680.0,0.00022811,2]
[367003832,1750612239540,-3000.0,0.0002282,2]
[367003833,1750612239550,-3000.0,0.0002283,2]
[367003834,1750612239560,-3000.0,0.0002284,2]
[367003835,1750612239571,-3000.0,0.0002285,2]
[367003836,1750612239581,-3000.0,0.0002286,2]
[367003837,1750612239592,-3000.0,0.0002287,2]
[367003838,1750612239602,-3000.0,0.0002288,2]
[367003839,1750612239612,-3000.0,0.0002289,2]
[367003840,1750612239624,-260.14,0.0002289,2]
[367003841,1750612239634,-3000.0,0.000229,2]
[367003842,1750612239644,-1334.78315828,0.000229,8]
[367003843,1750612239654,-3000.0,0.0002291,2]
[367003844,1750612239664,-1000.0,0.00022912,2]
[367003845,1750612239673,-3000.0,0.0002292,2]
[367003846,1750612239683,-3000.0,0.0002293,2]
[367003847,1750612239693,-3000.0,0.0002294,2]
[367003848,1750612239703,-3000.0,0.0002295,2]
[367003849,1750612239713,-3000.0,0.0002296,2]
[367003850,1750612239722,-3000.0,0.0002297,2]
[367003851,1750612239732,-500.0,0.00022973,2]
[367003852,1750612239741,-500.0,0.00022973,2]
[367003853,1750612239755,-500.0,0.00022973,2]
[367003854,1750612239765,-244.4534282,0.00022973,2]
[367003855,1750612239774,-500.0,0.00022973,2]
[367003856,1750612239784,-500.0,0.00022973,2]
[367003857,1750612239794,-500.0,0.00022973,2]
[367003859,1750612239804,-500.0,0.00022973,2]
[367003860,1750612239815,-500.0,0.00022973,2]
[367003861,1750612239827,-3000.0,0.0002298,2]
[367003862,1750612239837,-3680.0,0.00022983,2]
[367003863,1750612239848,-3000.0,0.0002299,2]
[367003864,1750612239859,-100000.0,0.0002299,2]
[367003865,1750612239870,-160.0,0.00023,3]
[367003866,1750612239879,-3000.0,0.00023,2]
[367003867,1750612239890,-3000.0,0.0002301,2]
[367003868,1750612239900,-168.0,0.00023014,7]
[367003869,1750612239910,-3000.0,0.0002302,2]
[367003870,1750612239921,-1334.78315807,0.00023038,8]
[367003871,1750612239931,-704.6,0.00023054,5]
[367003872,1750612239941,-3680.0,0.00023066,2]
[367003873,1750612239952,-3680.0,0.00023135,2]
[367003874,1750612239962,-500.0,0.00023147,8]
[367003875,1750612239972,-500.0,0.00023157,2]
[367003876,1750612239983,-1334.78315807,0.00023176,8]
[367003877,1750612239993,-1000.0,0.00023204,2]
[367003878,1750612240009,-500.0,0.0002325,2]
[367003879,1750612240019,-3680.0,0.00023308,2]
[367003880,1750612240028,-1100.0,0.00023309,2]
[367003881,1750612240038,-1334.78315807,0.00023314,9]
[367003882,1750612240047,-500.0,0.00023314,2]
[367003883,1750612240057,-704.6,0.00023321,5]
[367003884,1750612240069,-1100.0,0.0002333,2]
[367003886,1750612240078,-499.3,0.00023367,2]
[367003887,1750612240088,-420.0,0.00023371,2]
[367003888,1750612240097,-500.0,0.00023393,2]
[367003889,1750612240107,-3680.0,0.0002342,2]
[367003890,1750612240116,-556.0,0.00023425,3]
[367003891,1750612240126,-152.04280326,0.00023425,3]
[367003892,1750612240135,-500.0,0.00023425,3]
[367003893,1750612240145,-500.0,0.00023425,3]
[367003894,1750612240154,-151.32566504,0.00023425,3]
[367003895,1750612240165,-151.99710973,0.00023425,3]
[367003896,1750612240175,-151.0,0.00023425,3]
[367003897,1750612240184,-151.49926672,0.00023425,3]
[367003898,1750612240194,-751.0,0.00023425,3]
[367003899,1750612240203,-151.0,0.00023425,3]
[367003900,1750612240213,-151.0,0.00023425,3]
[367003901,1750612240222,-1334.78315807,0.00023452,9]
[367003903,1750612240231,-556.0,0.00023452,3]
[367003905,1750612240241,-500.0,0.00023452,3]
[367003907,1750612240257,-507.20470627,0.00023452,3]
[367003909,1750612240267,-751.0,0.00023452,3]
[367003911,1750612240278,-151.0,0.00023452,3]
[367003913,1750612240287,-151.0,0.00023452,3]
[367003915,1750612240298,-1500.0,0.0002346,2]
[367003917,1750612240308,-500.0,0.00023463,2]
[367003919,1750612240318,-215.0738,0.00023476,2]
[367003921,1750612240328,-556.0,0.0002348,3]
[367003923,1750612240338,-500.0,0.0002348,3]
[367003925,1750612240349,-751.0,0.0002348,3]
[367003927,1750612240360,-151.0,0.0002348,3]
[367003929,1750612240370,-151.0,0.0002348,3]
[367003931,1750612240380,-1680.0,0.00023482,2]
[367003933,1750612240390,-1566.388639,0.000235,2]
[367003935,1750612240400,-160.0,0.000235,3]
[367003937,1750612240410,-160.0,0.000235,3]
[367003939,1750612240422,-556.0,0.00023507,3]
[367003941,1750612240432,-500.0,0.00023507,3]
[367003943,1750612240441,-751.0,0.00023507,3]
[367003945,1750612240451,-217.30088505,0.00023507,3]
[367003947,1750612240461,-245.74169776,0.00023507,3]
[367003949,1750612240472,-1000.0,0.00023521,2]
[367003951,1750612240482,-1000.0,0.00023521,2]
[367003953,1750612240492,-550.61343313,0.00023521,2]
[367003955,1750612240505,-1000.0,0.00023521,2]
[367003957,1750612240515,-1000.0,0.00023521,2]
[367003959,1750612240525,-1000.0,0.00023521,2]
[367003961,1750612240535,-1000.0,0.00023521,2]
[367003963,1750612240545,-1000.0,0.00023521,2]
[367003965,1750612240555,-500.0,0.00023522,2]
[367003967,1750612240566,-556.0,0.00023535,3]
[367003969,1750612240575,-500.0,0.00023535,3]
[367003971,1750612240585,-751.0,0.00023535,3]
[367003973,1750612240594,-800.0,0.00023561,2]
[367003975,1750612240605,-556.0,0.00023562,3]
[367003977,1750612240615,-500.0,0.00023562,3]
[367003979,1750612240626,-751.0,0.00023562,3]
[367003981,1750612240635,-1100.0,0.00023572,2]
[367003983,1750612240645,-704.6,0.00023588,5]
[367003985,1750612240656,-556.0,0.00023589,3]
[367003987,1750612240666,-499.03939283,0.00023589,3]
[367003989,1750612240675,-751.0,0.00023589,3]
[367003991,1750612240685,-1334.78315807,0.0002359,9]
[367003994,1750612240695,-12551.52821599,0.000236,3]
[367003995,1750612240705,-425.01221603,0.000236,3]
[367003998,1750612240715,-846.39664074,0.000236,3]
[367004000,1750612240727,-230.14598372,0.000236,3]
[367004002,1750612240740,-213.59462818,0.000236,3]
[367004004,1750612240756,-160.0,0.000236,3]
[367004006,1750612240766,-160.0,0.000236,3]
[367004008,1750612240776,-500.0,0.00023613,2]
[367004010,1750612240786,-556.0,0.00023617,3]
[367004012,1750612240805,-751.0,0.00023617,3]
[367004014,1750612240826,-283.26645448,0.00023626,2]
[367004016,1750612240838,-556.0,0.00023644,3]
[367004018,1750612240848,-751.0,0.00023644,3]
[367004019,1750612240858,-500.0,0.00023648,2]
[367004021,1750612240868,-556.0,0.00023672,3]
[367004024,1750612240878,-751.0,0.00023672,3]
[367004026,1750612240888,-800.0,0.00023691,2]
[367004028,1750612240899,-500.0,0.00023695,9]
[367004030,1750612240909,-556.0,0.00023699,3]
[367004032,1750612240918,-751.0,0.00023699,3]
[367004034,1750612240929,-500.0,0.00023705,2]
[367004036,1750612240938,-556.0,0.00023726,3]
[367004038,1750612240949,-751.0,0.00023726,3]
[367004040,1750612240958,-1334.78315807,0.00023728,9]
[367004042,1750612240969,-153.95703304,0.00023728,2]
[367004044,1750612240978,-500.0,0.0002374,2]
[367004046,1750612240989,-1500.0,0.00023751,2]
[367004048,1750612241003,-556.0,0.00023754,3]
[367004050,1750612241013,-751.0,0.00023754,3]
[367004051,1750612241023,-500.0,0.0002376,2]
[367004053,1750612241032,-500.0,0.0002376,2]
[367004055,1750612241042,-500.0,0.0002376,2]
[367004057,1750612241052,-500.0,0.0002376,2]
[367004059,1750612241062,-500.0,0.0002376,2]
[367004061,1750612241073,-500.0,0.0002376,2]
[367004064,1750612241082,-500.0,0.0002376,2]
[367004066,1750612241093,-500.0,0.00023764,2]
[367004068,1750612241104,-500.0,0.00023769,2]
[367004070,1750612241113,-556.0,0.00023781,3]
[367004072,1750612241123,-751.0,0.00023781,3]
[367004074,1750612241133,-500.0,0.00023789,2]
[367004076,1750612241142,-500.0,0.00023789,2]
[367004078,1750612241152,-500.0,0.000238,2]
[367004080,1750612241162,-500.0,0.000238,2]
[367004082,1750612241172,-556.0,0.00023809,3]
[367004084,1750612241182,-751.0,0.00023809,3]
[367004086,1750612241192,-500.0,0.00023814,2]
[367004088,1750612241202,-600.0,0.00023814,2]
[367004090,1750612241213,-500.0,0.00023814,2]
[367004092,1750612241231,-585.16842993,0.00023814,2]
[367004094,1750612241254,-500.0,0.00023814,2]
[367004096,1750612241273,-500.0,0.00023814,2]
[367004098,1750612241293,-500.0,0.00023814,2]
[367004100,1750612241314,-422.95873471,0.00023814,2]
[367004102,1750612241324,-500.0,0.00023814,2]
[367004104,1750612241334,-500.0,0.00023814,2]
[367004106,1750612241344,-500.0,0.00023814,2]
[367004108,1750612241354,-500.0,0.00023814,2]
[367004110,1750612241364,-500.0,0.0002382,2]
[367004112,1750612241377,-556.0,0.00023836,3]
[367004114,1750612241387,-751.0,0.00023836,3]
[367004116,1750612241396,-1100.0,0.00023837,2]
[367004118,1750612241407,-500.0,0.0002384,2]
[367004120,1750612241417,-704.6,0.00023856,6]
[367004122,1750612241428,-556.0,0.00023863,3]
[367004124,1750612241438,-751.0,0.00023863,3]
[367004126,1750612241448,-1334.78315807,0.00023866,10]
[367004128,1750612241457,-3680.0,0.00023875,2]
[367004130,1750612241469,-283.26645444,0.00023883,2]
[367004132,1750612241480,-556.0,0.00023891,3]
[367004134,1750612241490,-751.0,0.00023891,3]
[367004136,1750612241503,-160.0,0.000239,3]
[367004138,1750612241514,-160.0,0.000239,3]
[367004141,1750612241524,-1100.0,0.00023902,2]
[367004143,1750612241534,-600.0,0.00023904,2]
[367004145,1750612241544,-1459.48,0.00023915,2]
[367004147,1750612241554,-556.0,0.00023918,3]
[367004149,1750612241564,-751.0,0.00023918,3]
[367004151,1750612241574,-500.0,0.00023923,2]
[367004153,1750612241585,-556.0,0.00023946,3]
[367004155,1750612241595,-751.0,0.00023946,3]
[367004157,1750612241604,-1100.0,0.00023964,2]
[367004159,1750612241614,-500.0,0.00023973,2]
[367004161,1750612241624,-556.0,0.00023973,3]
[367004163,1750612241633,-751.0,0.00023973,3]
[367004165,1750612241643,-160.0,0.00024,7]
[367004167,1750612241652,-160.0,0.00024,10]
[367004169,1750612241661,-2370.54,0.00024,7]
[367004171,1750612241670,-2536.92,0.00024,2]
[367004173,1750612241680,-1000.0,0.00024,2]
[367004175,1750612241689,-500.0,0.00024,9]
[367004177,1750612241698,-500.0,0.00024,9]
[367004179,1750612241708,-846.39664074,0.00024,3]
[367004181,1750612241717,-230.14598372,0.00024,3]
[367004182,1750612241727,-213.59462818,0.00024,3]
[367004184,1750612241736,-160.0,0.00024,3]
[367004186,1750612241745,-556.0,0.00024,3]
[367004189,1750612241760,-751.0,0.00024,3]
[367004191,1750612241770,-1334.78315807,0.00024003,10]
[367004193,1750612241779,-500.0,0.00024004,2]
[367004195,1750612241788,-2000.0,0.00024007,2]
[367004197,1750612241799,-1273.729537,0.00024009,4]
[367004199,1750612241808,-556.0,0.00024028,3]
[367004201,1750612241820,-751.0,0.00024028,3]
[367004203,1750612241830,-500.0,0.00024029,2]